[Event "CZE-ch 2020"]
[Site "Pilsen"]
[Date "2020.08.25"]
[Round "3.21"]
[White "Brozka, Karel"]
[Black "Svanda, Ondrej"]
[Result "1/2-1/2"]
[ECO "A57"]
[WhiteElo "1991"]
[BlackElo "2250"]
[Annotator "ChessBase"]
[PlyCount "38"]
[EventDate "2020.08.23"]
[EventType "swiss"]
[EventCountry "CZE"]
[SourceTitle "playchess.com"]
[Source "ChessBase"]
[SourceQuality "1"]
[TimeControl "40/5400+30:1800+30"]

1. d4 {[%emt 0:00:00]} Nf6 {[%emt 0:00:00]} 2. c4 {[%emt 0:00:04]} c5 {[%emt 0:00:00]} 3. d5 {[%emt 0:00:25]} b5 {[%emt 0:00:00]} 4. Nd2 {[%emt 0:00:29]} e6 {[%emt 0:03:38]} 5. dxe6 {[%emt 0:01:58]} fxe6 {[%emt 0:00:05]} 6. e4 {[%emt 0:00:32]} bxc4 {[%emt 0:15:37]} 7. e5 {[%emt 0:04:31]} Nd5 {[%emt 0:00:02]} 8. Nxc4 {[%emt 0:00:33]} Nc6 {[%emt 0:05:50]} 9. Bd3 {[%emt 0:02:29]} g6 {[%emt 0:00:13]} 10. Qg4 {[%emt 0:01:28]} Be7 {[%emt 0:01:08]} 11. Bxg6+ {[%emt 0:06:23]} hxg6 {[%emt 0:00:01]} 12. Qxg6+ {[%emt 0:00:17]} Kf8 {[%emt 0:00:01]} 13. h4 {[%emt 0:23:52]} Nd4 {[%emt 0:00:01]} 14. Bh6+ {[%emt 0:03:08]} Rxh6 {[%emt 0:00:01]} 15. Qxh6+ {[%emt 0:00:09]} Kg8 {[%emt 0:03:41]} 16. Qg6+ {[%emt 0:04:08]} Kh8 {[%emt 0:00:01]} 17. Qh6+ {[%emt 0:02:41]} Kg8 {[%emt 0:00:01]} 18. Qg6+ {[%emt 0:23:13]} Kh8 {[%emt 0:00:12]} 19. Qh6+ {[%emt 0:00:15]} Kg8 1/2-1/2

[Event "CZE-ch 2020"]
[Site "Pilsen"]
[Date "2020.08.25"]
[Round "3.22"]
[White "Bartos, Jan"]
[Black "Novotny, Michal"]
[Result "0-1"]
[ECO "A43"]
[WhiteElo "2131"]
[BlackElo "2246"]
[Annotator "ChessBase"]
[PlyCount "40"]
[EventDate "2020.08.23"]
[EventType "swiss"]
[EventCountry "CZE"]
[SourceTitle "playchess.com"]
[Source "ChessBase"]
[SourceQuality "1"]
[TimeControl "40/5400+30:1800+30"]

1. d4 {[%emt 0:00:30]} Nf6 {[%emt 0:03:11]} 2. Nf3 {[%emt 0:00:07]} c5 {[%emt 0:00:03]} 3. d5 {[%emt 0:00:18]} b5 {[%emt 0:00:02]} 4. c3 {[%emt 0:00:12]} Bb7 {[%emt 0:00:37]} 5. e4 {[%emt 0:00:24]} Nxe4 {[%emt 0:00:27]} 6. Bxb5 {[%emt 0:00:11]} e6 {[%emt 0:07:57]} 7. dxe6 {[%emt 0:04:47]} fxe6 {[%emt 0:00:09]} 8. O-O {[%emt 0:00:08]} Be7 {[%emt 0:03:57]} 9. Ne5 {[%emt 0:06:15]} O-O {[%emt 0:40:37]} 10. Nxd7 {[%emt 0:35:30]} Bh4 {[%emt 0:00:35]} 11. Be3 {[%emt 0:14:06]} Nxf2 {[%emt 0:12:26]} 12. Bxf2 {[%emt 0:01:32]} Bxf2+ {[%emt 0:02:47]} 13. Rxf2 {[%emt 0:00:12]} Rxf2 {[%emt 0:00:14]} 14. Kxf2 {[%emt 0:00:05]} Nxd7 {[%emt 0:00:50]} 15. Bxd7 {[%emt 0:04:39]} Qg5 {[%emt 0:06:02]} 16. Bxe6+ {[%emt 0:02:33]} Kh8 {[%emt 0:01:06]} 17. Bh3 {[%emt 0:04:32]} Rf8+ {[%emt 0:00:15]} 18. Kg1 {[%emt 0:00:18]} Qe3+ {[%emt 0:00:05]} 19. Kh1 {[%emt 0:00:07]} Qxh3 {[%emt 0:00:05]} 20. Qe2 {[%emt 0:00:32]} Qxg2+ {[%emt 0:00:19]} 0-1

[Event "CZE-ch 2020"]
[Site "Pilsen"]
[Date "2020.08.25"]
[Round "3.23"]
[White "Nemec, Pavel"]
[Black "Kopriva, Martin"]
[Result "1-0"]
[ECO "B06"]
[WhiteElo "2243"]
[BlackElo "2079"]
[Annotator "ChessBase"]
[PlyCount "73"]
[EventDate "2020.08.23"]
[EventType "swiss"]
[EventCountry "CZE"]
[SourceTitle "playchess.com"]
[Source "ChessBase"]
[SourceQuality "1"]
[TimeControl "40/5400+30:1800+30"]

1. e4 {[%emt 0:00:00]} g6 {[%emt 0:00:00]} 2. d4 {[%emt 0:00:00]} Bg7 {[%emt 0:00:00]} 3. Nc3 {[%emt 0:00:00]} d6 {[%emt 0:00:00]} 4. Be3 {[%emt 0:00:51]} a6 {[%emt 0:00:11]} 5. Nf3 {[%emt 0:03:07]} b5 {[%emt 0:02:47]} 6. a4 {[%emt 0:01:49]} b4 {[%emt 0:02:27]} 7. Nd5 {[%emt 0:00:38]} Bb7 {[%emt 0:02:37]} 8. Nxb4 {[%emt 0:02:50]} Bxe4 {[%emt 0:02:22]} 9. Bd3 {[%emt 0:00:08]} Bb7 {[%emt 0:06:30]} 10. a5 {[%emt 0:05:05]} Nf6 {[%emt 0:03:13]} 11. c4 {[%emt 0:03:42]} e5 {[%emt 0:08:54]} 12. dxe5 {[%emt 0:17:55]} dxe5 {[%emt 0:00:52]} 13. Be2 {[%emt 0:08:49]} Qe7 {[%emt 0:06:14]} 14. Qa4+ {[%emt 0:00:50]} Nbd7 {[%emt 0:10:52]} 15. c5 {[%emt 0:00:30]} Nd5 {[%emt 0:07:30]} 16. Nxd5 {[%emt 0:05:48]} Bxd5 {[%emt 0:00:47]} 17. Rd1 {[%emt 0:00:23]} c6 {[%emt 0:06:06]} 18. b4 {[%emt 0:07:44]} O-O {[%emt 0:01:34]} 19. O-O {[%emt 0:00:36]} f5 {[%emt 0:02:38]} 20. Rxd5 {[%emt 0:06:20]} cxd5 {[%emt 0:00:27]} 21. c6 {[%emt 0:00:08]} d4 {[%emt 0:01:54]} 22. Bc4+ {[%emt 0:00:13]} Kh8 {[%emt 0:00:37]} 23. Bg5 {[%emt 0:00:25]} Nf6 {[%emt 0:04:06]} 24. Re1 {[%emt 0:04:00]} e4 {[%emt 0:09:40]} 25. Nxd4 {[%emt 0:00:23]} Qd6 {[%emt 0:01:02]} 26. Ne6 {[%emt 0:01:50]} Rfc8 {[%emt 0:06:44]} 27. Rd1 {[%emt 0:08:36]} Qxc6 {[%emt 0:05:13]} 28. Rd8+ {[%emt 0:00:46]} Ng8 {[%emt 0:01:02]} 29. Qxc6 {[%emt 0:02:21]} Rxc6 {[%emt 0:00:10]} 30. Rxa8 {[%emt 0:00:49]} Rxc4 {[%emt 0:00:08]} 31. Rxa6 {[%emt 0:03:32]} Rxb4 {[%emt 0:00:10]} 32. g3 {[%emt 0:00:32]} h6 {[%emt 0:02:07]} 33. Be3 {[%emt 0:00:28]} Nf6 {[%emt 0:02:16]} 34. Ra7 {[%emt 0:02:22]} Nh5 {[%emt 0:01:18]} 35. Nxg7 {[%emt 0:03:22]} Nxg7 {[%emt 0:00:07]} 36. Ra8+ {[%emt 0:00:39]} Kh7 {[%emt 0:00:07]} 37. a6 {[%emt 0:00:07]} 1-0

[Event "CZE-ch 2020"]
[Site "Pilsen"]
[Date "2020.08.25"]
[Round "3.24"]
[White "Kusa, Jakub"]
[Black "Vojta, Jakub"]
[Result "1-0"]
[ECO "B33"]
[WhiteElo "2239"]
[BlackElo "2093"]
[Annotator "ChessBase"]
[PlyCount "107"]
[EventDate "2020.08.23"]
[EventType "swiss"]
[EventCountry "CZE"]
[SourceTitle "playchess.com"]
[Source "ChessBase"]
[SourceQuality "1"]
[TimeControl "40/5400+30:1800+30"]

1. e4 {[%emt 0:00:00]} c5 {[%emt 0:00:00]} 2. Nf3 {[%emt 0:00:00]} Nc6 {[%emt 0:00:00]} 3. d4 {[%emt 0:00:00]} cxd4 {[%emt 0:00:00]} 4. Nxd4 {[%emt 0:00:00]} Nf6 {[%emt 0:00:00]} 5. Nc3 {[%emt 0:00:01]} e5 {[%emt 0:00:00]} 6. Ndb5 {[%emt 0:00:11]} d6 {[%emt 0:00:00]} 7. Bg5 {[%emt 0:00:11]} a6 {[%emt 0:00:02]} 8. Na3 {[%emt 0:00:05]} b5 {[%emt 0:00:04]} 9. Nd5 {[%emt 0:00:07]} Be7 {[%emt 0:00:01]} 10. Nxe7 {[%emt 0:00:13]} Nxe7 {[%emt 0:00:01]} 11. Bd3 {[%emt 0:00:21]} d5 {[%emt 0:00:06]} 12. exd5 {[%emt 0:01:22]} Qxd5 {[%emt 0:01:22]} 13. Qd2 {[%emt 0:01:21]} Ne4 {[%emt 0:00:04]} 14. Qe3 {[%emt 0:00:56]} Nxg5 {[%emt 0:00:03]} 15. Qxg5 {[%emt 0:00:09]} Qc5 {[%emt 0:00:11]} 16. O-O-O {[%emt 0:01:21]} O-O {[%emt 0:05:18]} 17. Rhe1 {[%emt 0:00:55]} Nc6 {[%emt 0:05:17]} 18. Be4 {[%emt 0:07:55]} Be6 {[%emt 0:00:30]} 19. Qe3 {[%emt 0:03:49]} Qxe3+ {[%emt 0:02:56]} 20. Rxe3 {[%emt 0:02:08]} Rac8 {[%emt 0:00:03]} 21. Bxc6 {[%emt 0:04:11]} Rxc6 {[%emt 0:00:35]} 22. Rxe5 {[%emt 0:02:40]} Rfc8 {[%emt 0:03:56]} 23. c3 {[%emt 0:03:51]} b4 {[%emt 0:01:11]} 24. Nc2 {[%emt 0:01:09]} bxc3 {[%emt 0:00:43]} 25. b3 {[%emt 0:00:34]} f6 {[%emt 0:04:43]} 26. Re3 {[%emt 0:01:51]} Bf7 {[%emt 0:05:29]} 27. Red3 {[%emt 0:02:42]} Bg6 {[%emt 0:04:02]} 28. Rd8+ {[%emt 0:01:42]} Rxd8 {[%emt 0:00:14]} 29. Rxd8+ {[%emt 0:00:02]} Kf7 {[%emt 0:00:09]} 30. Rd7+ {[%emt 0:01:54]} Kg8 {[%emt 0:06:24]} 31. Nd4 {[%emt 0:05:20]} Rc8 {[%emt 0:05:41]} 32. f4 {[%emt 0:05:28]} Be4 {[%emt 0:05:10]} 33. Ne6 {[%emt 0:01:19]} g6 {[%emt 0:01:03]} 34. g3 {[%emt 0:03:35]} Bf5 {[%emt 0:13:31]} 35. Rg7+ {[%emt 0:01:38]} Kh8 {[%emt 0:00:06]} 36. Re7 {[%emt 0:00:14]} Kg8 {[%emt 0:08:01]} 37. Nd4 {[%emt 0:02:16]} Bg4 {[%emt 0:07:32]} 38. Kc2 {[%emt 0:03:04]} g5 {[%emt 0:01:32]} 39. Re3 {[%emt 0:02:08]} Kf7 {[%emt 0:01:20]} 40. Rxc3 {[%emt 0:01:39]} Rd8 {[%emt 0:01:46]} 41. Kd3 {[%emt 0:31:26]} Bf5+ {[%emt 0:31:06]} 42. Ke3 {[%emt 0:00:37]} Bb1 {[%emt 0:00:37]} 43. fxg5 {[%emt 0:02:20]} fxg5 {[%emt 0:00:15]} 44. Rc7+ {[%emt 0:02:01]} Kg8 {[%emt 0:00:44]} 45. a3 {[%emt 0:01:52]} Re8+ {[%emt 0:01:06]} 46. Kd2 {[%emt 0:01:20]} Bg6 {[%emt 0:00:13]} 47. a4 {[%emt 0:03:00]} g4 {[%emt 0:02:24]} 48. b4 {[%emt 0:03:57]} Rf8 {[%emt 0:00:47]} 49. b5 {[%emt 0:01:18]} axb5 {[%emt 0:00:39]} 50. axb5 {[%emt 0:00:16]} Be4 {[%emt 0:01:08]} 51. Ke3 {[%emt 0:03:38]} Bd5 {[%emt 0:00:28]} 52. Nc6 {[%emt 0:00:38]} Re8+ {[%emt 0:02:53]} 53. Kd4 {[%emt 0:00:53]} Bf3 {[%emt 0:00:23]} 54. b6 {[%emt 0:00:52]} 1-0

[Event "CZE-ch 2020"]
[Site "Pilsen"]
[Date "2020.08.25"]
[Round "3.25"]
[White "Kawulok, Marek"]
[Black "Paseka, Matyas"]
[Result "0-1"]
[ECO "B31"]
[WhiteElo "2226"]
[BlackElo "1959"]
[Annotator "ChessBase"]
[PlyCount "52"]
[EventDate "2020.08.23"]
[EventType "swiss"]
[EventCountry "CZE"]
[SourceTitle "playchess.com"]
[Source "ChessBase"]
[SourceQuality "1"]
[TimeControl "40/5400+30:1800+30"]

1. e4 {[%emt 0:00:00]} c5 {[%emt 0:00:00]} 2. Nf3 {[%emt 0:00:00]} Nc6 {[%emt 0:00:00]} 3. Bb5 {[%emt 0:00:00]} g6 {[%emt 0:00:00]} 4. Bxc6 {[%emt 0:00:00]} dxc6 {[%emt 0:00:02]} 5. d3 {[%emt 0:00:00]} Bg7 {[%emt 0:00:09]} 6. h3 {[%emt 0:00:13]} Nf6 {[%emt 0:00:27]} 7. Nc3 {[%emt 0:00:07]} e5 {[%emt 0:01:34]} 8. Be3 {[%emt 0:00:44]} Nd7 {[%emt 0:01:51]} 9. Qd2 {[%emt 0:00:15]} h6 {[%emt 0:00:28]} 10. O-O {[%emt 0:02:41]} Qe7 {[%emt 0:01:42]} 11. Nh2 {[%emt 0:00:43]} Nf8 {[%emt 0:01:20]} 12. f4 {[%emt 0:00:19]} exf4 {[%emt 0:01:05]} 13. Bxf4 {[%emt 0:00:06]} g5 {[%emt 0:00:42]} 14. Bg3 {[%emt 0:06:35]} Ng6 {[%emt 0:04:03]} 15. Rae1 {[%emt 0:07:37]} Be6 {[%emt 0:15:35]} 16. e5 {[%emt 0:14:32]} O-O-O {[%emt 0:04:57]} 17. Nf3 {[%emt 0:01:34]} g4 {[%emt 0:07:42]} 18. hxg4 {[%emt 0:00:18]} Bxg4 {[%emt 0:00:07]} 19. Ne4 {[%emt 0:02:24]} Bxf3 {[%emt 0:03:46]} 20. Nd6+ {[%emt 0:00:38]} Rxd6 {[%emt 0:09:23]} 21. exd6 {[%emt 0:00:10]} Bd4+ {[%emt 0:00:07]} 22. Kh2 {[%emt 0:08:50]} Qg5 {[%emt 0:00:13]} 23. Rxf3 {[%emt 0:05:14]} Qxd2 {[%emt 0:00:46]} 24. Rxf7 {[%emt 0:00:05]} Be3 {[%emt 0:25:58]} 25. Rc7+ {[%emt 0:09:52]} Kb8 {[%emt 0:04:21]} 26. d7 {[%emt 0:01:50]} Nf4 {[%emt 0:00:12]} 0-1

[Event "CZE-ch 2020"]
[Site "Pilsen"]
[Date "2020.08.25"]
[Round "3.26"]
[White "Smolik, Jachym"]
[Black "Toman, Ondrej"]
[Result "0-1"]
[ECO "C03"]
[WhiteElo "2121"]
[BlackElo "2233"]
[Annotator "ChessBase"]
[PlyCount "118"]
[EventDate "2020.08.23"]
[EventType "swiss"]
[EventCountry "CZE"]
[SourceTitle "playchess.com"]
[Source "ChessBase"]
[SourceQuality "1"]
[TimeControl "40/5400+30:1800+30"]

1. e4 {[%emt 0:00:00]} e6 {[%emt 0:00:00]} 2. d4 {[%emt 0:00:00]} d5 {[%emt 0:00:00]} 3. Nd2 {[%emt 0:00:00]} h6 {[%emt 0:00:24]} 4. Ngf3 {[%emt 0:00:29]} Ne7 {[%emt 0:00:34]} 5. e5 {[%emt 0:02:02]} c5 {[%emt 0:00:35]} 6. dxc5 {[%emt 0:01:03]} Nec6 {[%emt 0:02:36]} 7. a3 {[%emt 0:04:18]} Bxc5 {[%emt 0:01:39]} 8. b4 {[%emt 0:00:11]} Bf8 {[%emt 0:00:53]} 9. Bb2 {[%emt 0:03:11]} Nd7 {[%emt 0:01:58]} 10. Bd3 {[%emt 0:00:51]} g5 {[%emt 0:03:02]} 11. h3 {[%emt 0:05:49]} Bg7 {[%emt 0:01:59]} 12. Qe2 {[%emt 0:01:18]} Qc7 {[%emt 0:02:12]} 13. O-O {[%emt 0:10:51]} Ndxe5 {[%emt 0:09:19]} 14. Nxe5 {[%emt 0:00:16]} Bxe5 {[%emt 0:02:05]} 15. Bxe5 {[%emt 0:00:11]} Qxe5 {[%emt 0:02:57]} 16. Qh5 {[%emt 0:01:06]} Qf6 {[%emt 0:05:44]} 17. Rae1 {[%emt 0:04:10]} Ne5 {[%emt 0:09:24]} 18. Bb5+ {[%emt 0:03:03]} Bd7 {[%emt 0:09:27]} 19. f4 {[%emt 0:05:10]} Bxb5 {[%emt 0:03:49]} 20. fxe5 {[%emt 0:00:05]} Qg6 {[%emt 0:05:58]} 21. Qxg6 {[%emt 0:00:02]} fxg6 {[%emt 0:00:05]} 22. Rf6 {[%emt 0:00:02]} Ke7 {[%emt 0:00:29]} 23. Nb3 {[%emt 0:02:51]} Raf8 {[%emt 0:03:33]} 24. Rxg6 {[%emt 0:00:54]} Be8 {[%emt 0:03:45]} 25. Rg7+ {[%emt 0:01:07]} Rf7 {[%emt 0:01:11]} 26. Rxf7+ {[%emt 0:00:13]} Bxf7 {[%emt 0:00:10]} 27. Re3 {[%emt 0:03:18]} Rc8 {[%emt 0:03:27]} 28. c3 {[%emt 0:00:03]} Bg6 {[%emt 0:00:46]} 29. Nd4 {[%emt 0:01:45]} a5 {[%emt 0:06:41]} 30. Nb5 {[%emt 0:11:09]} axb4 {[%emt 0:01:20]} 31. axb4 {[%emt 0:00:00]} Ra8 {[%emt 0:01:10]} 32. Nd6 {[%emt 0:00:04]} b6 {[%emt 0:02:26]} 33. Kh2 {[%emt 0:09:23]} Ra2 {[%emt 0:03:08]} 34. Rf3 {[%emt 0:02:47]} Re2 {[%emt 0:06:14]} 35. Nc8+ {[%emt 0:02:10]} Kd8 {[%emt 0:02:34]} 36. Nxb6 {[%emt 0:00:01]} Kc7 {[%emt 0:01:22]} 37. Na4 {[%emt 0:02:27]} Be4 {[%emt 0:01:50]} 38. Rg3 {[%emt 0:00:01]} Bf5 {[%emt 0:00:12]} 39. Nc5 {[%emt 0:03:50]} Rxe5 {[%emt 0:01:13]} 40. Nb3 {[%emt 0:00:57]} Re2 {[%emt 0:02:28]} 41. Nd4 {[%emt 0:30:28]} Rd2 {[%emt 0:07:08]} 42. Re3 {[%emt 0:00:00]} Kd6 {[%emt 0:03:34]} 43. Kg1 {[%emt 0:00:00]} Be4 {[%emt 0:01:25]} 44. Ne2 {[%emt 0:00:00]} Rb2 {[%emt 0:04:10]} 45. g3 {[%emt 0:00:00]} h5 {[%emt 0:03:10]} 46. h4 {[%emt 0:00:00]} gxh4 {[%emt 0:00:50]} 47. gxh4 {[%emt 0:00:00]} Ke5 {[%emt 0:00:13]} 48. Kf2 {[%emt 0:00:00]} Kf6 {[%emt 0:01:36]} 49. Rg3 {[%emt 0:00:00]} e5 {[%emt 0:01:19]} 50. Ke3 {[%emt 0:00:00]} Bf5 {[%emt 0:00:49]} 51. Rf3 {[%emt 0:00:00]} Ke6 {[%emt 0:00:48]} 52. Rf2 {[%emt 0:00:00]} Rb1 {[%emt 0:00:58]} 53. Kd2 {[%emt 0:00:11]} Bg4 {[%emt 0:01:21]} 54. Nc1 {[%emt 0:05:18]} Rb2+ {[%emt 0:01:01]} 55. Ke1 {[%emt 0:00:08]} Rb1 {[%emt 0:00:02]} 56. Kd2 {[%emt 0:00:03]} e4 {[%emt 0:00:02]} 57. Ne2 {[%emt 0:04:08]} Ke5 {[%emt 0:00:37]} 58. Nd4 {[%emt 0:01:42]} Rd1+ {[%emt 0:02:39]} 59. Ke3 {[%emt 0:00:38]} Rd3# 0-1

[Event "CZE-ch 2020"]
[Site "Pilsen"]
[Date "2020.08.25"]
[Round "3.28"]
[White "Vybiral, Zdenek"]
[Black "Placer, Sebastian"]
[Result "1-0"]
[ECO "D85"]
[WhiteElo "2221"]
[BlackElo "2097"]
[Annotator "ChessBase"]
[PlyCount "109"]
[EventDate "2020.08.23"]
[EventType "swiss"]
[EventCountry "CZE"]
[SourceTitle "playchess.com"]
[Source "ChessBase"]
[SourceQuality "1"]
[TimeControl "40/5400+30:1800+30"]

1. d4 {[%emt 0:01:46]} Nf6 {[%emt 0:00:00]} 2. c4 {[%emt 0:00:11]} g6 {[%emt 0:00:28]} 3. Nc3 {[%emt 0:00:09]} d5 4. cxd5 {[%emt 0:00:04]} Nxd5 {[%emt 0:00:11]} 5. Bd2 {[%emt 0:00:04]} Bg7 {[%emt 0:00:53]} 6. e4 {[%emt 0:00:06]} Nb6 {[%emt 0:00:08]} 7. Be3 {[%emt 0:00:04]} O-O {[%emt 0:00:19]} 8. Bb5 {[%emt 0:00:05]} c6 {[%emt 0:02:09]} 9. Be2 {[%emt 0:00:05]} e5 {[%emt 0:09:09]} 10. Nf3 {[%emt 0:04:08]} exd4 {[%emt 0:02:44]} 11. Nxd4 {[%emt 0:00:22]} N8d7 {[%emt 0:00:44]} 12. O-O {[%emt 0:00:18]} Qe7 {[%emt 0:02:11]} 13. Qc2 {[%emt 0:14:57]} Rd8 {[%emt 0:02:25]} 14. Rad1 {[%emt 0:04:55]} Ne5 {[%emt 0:07:07]} 15. b3 {[%emt 0:37:30]} Ng4 {[%emt 0:08:18]} 16. Bxg4 {[%emt 0:00:07]} Bxg4 {[%emt 0:00:03]} 17. f3 {[%emt 0:00:07]} Be6 {[%emt 0:00:47]} 18. Nce2 {[%emt 0:01:50]} Rd7 {[%emt 0:06:33]} 19. Nxe6 {[%emt 0:06:44]} fxe6 {[%emt 0:02:08]} 20. Rxd7 {[%emt 0:00:51]} Qxd7 {[%emt 0:01:57]} 21. Rd1 {[%emt 0:00:19]} Qe8 {[%emt 0:01:40]} 22. Qd2 {[%emt 0:04:38]} Be5 {[%emt 0:07:44]} 23. a4 {[%emt 0:07:32]} Bc7 {[%emt 0:02:24]} 24. Bg5 {[%emt 0:00:05]} a5 {[%emt 0:01:39]} 25. Ng3 {[%emt 0:05:05]} Qf7 {[%emt 0:06:06]} 26. Nf1 {[%emt 0:00:25]} e5 {[%emt 0:00:32]} 27. Qd3 {[%emt 0:00:47]} Re8 {[%emt 0:07:41]} 28. Ne3 {[%emt 0:00:12]} Re6 {[%emt 0:05:30]} 29. Ng4 {[%emt 0:01:20]} Qf8 {[%emt 0:07:20]} 30. Bh6 {[%emt 0:02:39]} Qc5+ {[%emt 0:00:52]} 31. Be3 {[%emt 0:00:06]} Qe7 {[%emt 0:00:28]} 32. Qc3 {[%emt 0:00:50]} h5 {[%emt 0:07:47]} 33. Bc5 {[%emt 0:01:06]} Qg7 {[%emt 0:01:17]} 34. Nf2 {[%emt 0:05:59]} Nd7 {[%emt 0:00:28]} 35. Be3 {[%emt 0:00:05]} Qe7 {[%emt 0:00:17]} 36. Qc4 {[%emt 0:00:31]} Kg7 {[%emt 0:00:39]} 37. Qc1 {[%emt 0:00:30]} Rd6 {[%emt 0:00:35]} 38. Rd3 {[%emt 0:01:12]} Rxd3 {[%emt 0:01:25]} 39. Nxd3 {[%emt 0:00:01]} Qd6 {[%emt 0:00:22]} 40. Qc3 {[%emt 0:00:10]} Kh7 {[%emt 0:02:16]} 41. Kf2 {[%emt 0:30:34]} Qe6 {[%emt 0:06:03]} 42. Ke2 {[%emt 0:00:00]} b6 {[%emt 0:04:09]} 43. Bc1 {[%emt 0:00:00]} Bd8 {[%emt 0:02:47]} 44. Qd2 {[%emt 0:00:00]} Kg8 {[%emt 0:01:18]} 45. Nxe5 {[%emt 0:00:00]} Qxe5 {[%emt 0:02:35]} 46. Qxd7 {[%emt 0:00:00]} Qf6 {[%emt 0:00:54]} 47. Kd3 {[%emt 0:00:00]} Be7 {[%emt 0:01:44]} 48. Be3 {[%emt 0:00:00]} c5 {[%emt 0:06:18]} 49. Bd2 {[%emt 0:00:00]} Qf7 {[%emt 0:01:24]} 50. Bc3 {[%emt 0:00:00]} Kh7 {[%emt 0:02:23]} 51. f4 {[%emt 0:00:00]} Kg8 {[%emt 0:00:55]} 52. g3 {[%emt 0:00:00]} g5 {[%emt 0:01:00]} 53. f5 {[%emt 0:02:20]} g4 {[%emt 0:01:07]} 54. Qc6 {[%emt 0:00:17]} Kh7 {[%emt 0:00:29]} 55. Qxb6 {[%emt 0:00:35]} 1-0

[Event "CZE-ch 2020"]
[Site "Pilsen"]
[Date "2020.08.25"]
[Round "3.29"]
[White "Jun, Rudolf"]
[Black "Eret, Jonas"]
[Result "1/2-1/2"]
[ECO "B00"]
[WhiteElo "2094"]
[BlackElo "2219"]
[Annotator "ChessBase"]
[PlyCount "60"]
[EventDate "2020.08.23"]
[EventType "swiss"]
[EventCountry "CZE"]
[SourceTitle "playchess.com"]
[Source "ChessBase"]
[SourceQuality "1"]
[TimeControl "40/5400+30:1800+30"]

1. e4 {[%emt 0:00:00]} d6 {[%emt 0:00:04]} 2. d4 {[%emt 0:02:07]} Nf6 {[%emt 0:00:06]} 3. Bd3 {[%emt 0:00:56]} e5 {[%emt 0:01:24]} 4. c3 {[%emt 0:07:12]} Be7 {[%emt 0:02:09]} 5. Nf3 {[%emt 0:00:58]} Nbd7 {[%emt 0:09:41]} 6. Nbd2 {[%emt 0:02:17]} exd4 {[%emt 0:05:30]} 7. cxd4 {[%emt 0:00:40]} O-O {[%emt 0:00:43]} 8. O-O {[%emt 0:00:21]} Nb6 {[%emt 0:02:43]} 9. Re1 {[%emt 0:01:27]} c5 {[%emt 0:04:51]} 10. Nc4 {[%emt 0:02:39]} Nxc4 {[%emt 0:12:47]} 11. Bxc4 {[%emt 0:00:15]} Bg4 {[%emt 0:01:29]} 12. dxc5 {[%emt 0:03:11]} dxc5 {[%emt 0:03:03]} 13. Bf4 {[%emt 0:01:40]} Qxd1 {[%emt 0:16:32]} 14. Raxd1 {[%emt 0:00:22]} Rad8 {[%emt 0:01:01]} 15. e5 {[%emt 0:04:21]} Nh5 {[%emt 0:06:12]} 16. Be3 {[%emt 0:00:41]} g6 {[%emt 0:05:16]} 17. Rxd8 {[%emt 0:04:56]} Rxd8 {[%emt 0:01:27]} 18. Bg5 {[%emt 0:01:00]} Kf8 {[%emt 0:02:27]} 19. Bh6+ {[%emt 0:07:30]} Ng7 {[%emt 0:02:22]} 20. Ng5 {[%emt 0:02:15]} Bxg5 {[%emt 0:01:42]} 21. Bxg5 {[%emt 0:00:09]} Rd4 {[%emt 0:00:23]} 22. b3 {[%emt 0:00:30]} b6 {[%emt 0:00:33]} 23. f3 {[%emt 0:05:05]} Be6 {[%emt 0:00:35]} 24. Be3 {[%emt 0:00:24]} Rd8 {[%emt 0:00:24]} 25. Bg5 {[%emt 0:00:26]} Rd4 {[%emt 0:00:07]} 26. Be3 {[%emt 0:00:25]} Rd8 {[%emt 0:00:57]} 27. Bg5 {[%emt 0:00:42]} Rd4 {[%emt 0:00:24]} 28. Be3 {[%emt 0:00:10]} Rd8 {[%emt 0:00:08]} 29. Bg5 {[%emt 0:00:08]} Rd4 {[%emt 0:00:05]} 30. Be3 {[%emt 0:00:09]} Rd8 {[%emt 0:00:03]} 1/2-1/2

[Event "CZE-ch 2020"]
[Site "Pilsen"]
[Date "2020.08.25"]
[Round "3.30"]
[White "Frank, Adam"]
[Black "Kures, Michael"]
[Result "1-0"]
[ECO "B63"]
[WhiteElo "2219"]
[BlackElo "2019"]
[Annotator "ChessBase"]
[PlyCount "45"]
[EventDate "2020.08.23"]
[EventType "swiss"]
[EventCountry "CZE"]
[SourceTitle "playchess.com"]
[Source "ChessBase"]
[SourceQuality "1"]
[TimeControl "40/5400+30:1800+30"]

1. e4 {[%emt 0:00:00]} c5 {[%emt 0:00:00]} 2. Nf3 {[%emt 0:00:00]} Nc6 {[%emt 0:00:00]} 3. d4 {[%emt 0:00:00]} cxd4 {[%emt 0:00:00]} 4. Nxd4 {[%emt 0:00:00]} Nf6 {[%emt 0:00:07]} 5. Nc3 {[%emt 0:00:00]} d6 {[%emt 0:00:05]} 6. Bg5 {[%emt 0:00:00]} e6 {[%emt 0:00:05]} 7. Qd2 {[%emt 0:00:00]} Be7 {[%emt 0:00:06]} 8. O-O-O {[%emt 0:00:09]} O-O {[%emt 0:00:08]} 9. f3 {[%emt 0:00:13]} a6 {[%emt 0:00:07]} 10. h4 {[%emt 0:00:05]} Qa5 {[%emt 0:00:48]} 11. Kb1 {[%emt 0:00:50]} Nxd4 {[%emt 0:02:56]} 12. Qxd4 {[%emt 0:00:07]} b5 {[%emt 0:00:40]} 13. Qd2 {[%emt 0:12:29]} b4 {[%emt 0:04:38]} 14. Ne2 {[%emt 0:00:05]} h6 {[%emt 0:04:07]} 15. Nd4 {[%emt 0:20:29]} hxg5 {[%emt 0:05:38]} 16. hxg5 {[%emt 0:00:41]} Nxe4 {[%emt 0:00:53]} 17. fxe4 {[%emt 0:16:32]} Qxg5 {[%emt 0:00:26]} 18. Qf2 {[%emt 0:10:11]} a5 {[%emt 0:05:17]} 19. Be2 {[%emt 0:02:19]} g6 {[%emt 0:04:05]} 20. Rd3 {[%emt 0:14:56]} Bb7 {[%emt 0:04:23]} 21. Rdh3 {[%emt 0:04:53]} Bf6 {[%emt 0:02:48]} 22. Nf5 {[%emt 0:08:29]} Bxe4 {[%emt 0:41:07]} 23. Ne7+ {[%emt 0:00:35]} 1-0